Cogmind - Beta 17 @@@ ROGUE MODE // 2026.06.23 @ 20:52:59 Player: Cinder Result: Destroyed by G-73 Enforcer with Phase Gun Performance ------------- Evolutions (7) 3500 Regions Visited (18) 3600 Robots Destroyed (245) 1225 Value Destroyed (10554) 10554 Prototype IDs (6) 120 Alien Tech Used (0) 0 Bonus (3575) 3575 TOTAL SCORE: 22574 Bonus ------- High Alert Combat Kills 823 Follower Combat Kills 2401 Entered Garrisons 200 Used RIF Installer 500 Friendly Fire -349 Cogmind --------- Core Integrity 0/1300 Matter 90/300 Energy 93/100 System Corruption 24% Temperature Cool (0) Movement Core (50) Location -3/Research Parts ------- > --- POWER (2) -------- (None) > --- PROPULSION (4) --- (None) > --- UTILITY (11) ----- (None) > --- WEAPON (4) ------- (None) > --- INVENTORY (5) ---- Cooled Deuterium Engine Huge Storage Unit Medium Matter Pod (16) Improved Medium Armor Plating Advanced Shield Generator Peak State ------------ > --- POWER ------------ Reinforced Fission Core Antimatter Reactor > --- PROPULSION ------- Wheel Wheel Wheel Wheel > --- UTILITY ---------- Advanced Heat Sink Huge Storage Unit Improved Targeting Computer Improved Kinecellerator Improved Weapon Cycler Advanced Phase Shifter Hardened Medium Armor Plating Improved Medium Armor Plating Heavy Reflective Plating Advanced Shield Generator > --- WEAPON ----------- Railgun Advanced KE Penetrator Gauss Cannon Mini Assault Cannon > --- INVENTORY -------- Cooled Deuterium Engine Cooled Deuterium Engine Neutrino Core Medium Treads Medium Treads Medium Treads Armored Medium Treads Wheel Wheel Wheel Wheel Huge Storage Unit High-capacity Matter Pod Matter Compressor Improved Medium Armor Plating Advanced Thermal Shield Advanced Shield Generator KE Penetrator Mini Assault Cannon Mini Assault Cannon Heavy Flak Cannon Enhanced Gauss Cannon Rocket Launcher Long-range Missile Launcher [Rating: 102] Favorites ----------- Power Light Nuclear Core Engine Ion Engine Power Core Light Nuclear Core Reactor Antimatter Reactor Propulsion Wheel Treads Medium Treads Wheel Wheel Utility Improved Targeting Computer Device Advanced Heat Sink Storage Huge Storage Unit Processor Improved Targeting Computer Hackware Relay Coupler [Sentry] Protection Improved Light Armor Plating Weapon Mini Assault Cannon Energy Gun Medium Laser Ballistic Gun Flak Gun Ballistic Cannon Mini Assault Cannon Launcher Rocket Launcher Special Melee Weapon Improved Datajack Build | -11 -10 -10 -10 -9 -8 -7 -7 -7 -7 -7 -6 -6 -6 -6 -6 -5 -4 -3 ------- Run | Yrd Mat Min Exi Min Mat Fac Gar Fac Low Low Fac Ext Cet Arc Hub Fac Fac Res Slots Evolved 14 | . . . . . 4 2 . . . . 2 . . . . 2 2 2 Power 1 | . . . . . . . . . . . . . . . . 1 . . Propulsion 2 | . . . . . . 1 . . . . . . . . . 1 . . Utility 9 | . . . . . 4 . . . . . 1 . . . . . 2 2 Weapon 2 | . . . . . . 1 . . . . 1 . . . . . . . Parts Attached 186 | 9 6 . . . 15 8 26 10 5 5 13 27 3 2 7 7 14 29 Power 28 | 2 1 . . . 2 2 6 1 . 2 1 3 . . 2 2 1 3 Engine 16 | 2 1 . . . 1 1 1 1 . 1 1 3 . . 2 1 . 1 Core 10 | . . . . . 1 1 5 . . 1 . . . . . 1 1 . Reactor 2 | . . . . . . . . . . . . . . . . . . 2 Propulsion 46 | 3 1 . . . 3 2 3 2 1 1 4 4 1 . 1 3 4 13 Treads 6 | . . . . . . . . . . . . . . . . . . 6 Leg . | . . . . . . . . . . . . . . . . . . . Wheel 40 | 3 1 . . . 3 2 3 2 1 1 4 4 1 . 1 3 4 7 Hover . | . . . . . . . . . . . . . . . . . . . Flight . | . . . . . . . . . . . . . . . . . . . Utility 71 | 3 2 . . . 7 2 9 5 3 1 4 14 . 2 2 1 7 9 Device 36 | 2 . . . . 4 . 5 2 1 . 1 7 . 1 1 . 5 7 Storage 4 | 1 1 . . . . . . 1 . . . . . . . . . 1 Processor 3 | . . . . . 2 . . . . . 1 . . . . . . . Hackware 2 | . . . . . . . . . . . . 2 . . . . . . Protection 26 | . 1 . . . 1 2 4 2 2 1 2 5 . 1 1 1 2 1 Artifact . | . . . . . . . . . . . . . . . . . . . Weapon 41 | 1 2 . . . 3 2 8 2 1 1 4 6 2 . 2 1 2 4 Energy Gun 2 | . 1 . . . 1 . . . . . . . . . . . . . Energy Cannon . | . . . . . . . . . . . . . . . . . . . Ballistic Gun 19 | 1 1 . . . 2 1 5 1 . . 1 . 2 . 1 1 1 2 Ballistic Cannon 14 | . . . . . . 1 2 1 1 . 2 4 . . 1 . . 2 Launcher 4 | . . . . . . . 1 . . 1 1 . . . . . 1 . Special Weapon . | . . . . . . . . . . . . . . . . . . . Impact Weapon . | . . . . . . . . . . . . . . . . . . . Slashing Weapon . | . . . . . . . . . . . . . . . . . . . Piercing Weapon . | . . . . . . . . . . . . . . . . . . . Special Melee Weapon 2 | . . . . . . . . . . . . 2 . . . . . . Unidentified Prototypes 6 | . . . . . 1 1 . . . . . . 1 . 1 . 2 . Corrupted Parts 1 | . . . . . . . . . . . . . . . . . 1 . System Corruption 1 | . . . . . . . . . . . . . . . . . 1 . Parts Lost 103 | . 2 . . . 7 1 11 1 3 4 5 12 2 . . 2 4 49 Power 7 | . . . . . . . 1 . . 1 1 . . . . . . 4 Propulsion 39 | . 2 . . . 2 . 3 1 1 1 3 4 1 . . 1 3 17 Utility 34 | . . . . . 3 1 5 . 1 1 1 4 . . . 1 1 16 Weapon 23 | . . . . . 2 . 2 . 1 1 . 4 1 . . . . 12 Highest Loss Streak 24 | . 1 . . . 2 1 3 1 1 3 3 6 2 . . 1 2 24 To Critical Strikes 2 | . . . . . . . 1 . . . . . 1 . . . . . Average Backups 22 | 2 12 15 17 20 22 24 23 23 21 22 22 24 23 24 23 23 22 19 Power 2 | . 1 2 4 5 5 4 2 2 2 2 1 1 2 2 2 2 2 1 Propulsion 3 | . 3 3 3 3 3 2 1 2 1 1 1 5 5 5 5 4 5 6 Utility 10 | . 4 7 7 9 8 9 12 12 11 13 12 9 10 10 9 9 8 5 Weapon 5 | . 2 3 3 3 5 7 6 6 6 4 7 5 5 6 6 6 6 4 Tool/Special . | . . . . . . . . . . . . . . . . . . . Unused Backups 47 | 1 1 . 1 . 3 2 8 3 . . 3 14 . . 1 2 2 6 Power 11 | . . . . . 2 1 3 . . . . 3 . . 1 . . 1 Propulsion 10 | . . . . . . . . . . . 2 7 . . . . . 1 Utility 22 | 1 1 . 1 . 1 1 4 3 . . 1 3 . . . 1 1 4 Weapon 3 | . . . . . . . 1 . . . . 1 . . . 1 . . Tool/Special 1 | . . . . . . . . . . . . . . . . . 1 . Average Slot Usage (%) 95 | . 98 100 100 100 95 99 98 88 84 99 97 96 100 99 99 97 97 71 Engine 5 | . 14 14 14 14 4 5 . 5 7 3 5 6 6 6 6 5 3 . Core 2 | . . . . . 4 1 6 1 . 3 . . . . . 2 6 4 Wheel 21 | . 27 28 28 28 18 22 22 22 21 22 18 19 20 20 20 22 20 9 Device 11 | . 8 . . . 14 15 9 11 14 13 13 10 6 6 6 9 24 19 Storage 7 | . 14 14 14 14 9 7 7 7 7 7 6 6 6 6 6 5 5 4 Processor 10 | . . . . . 17 15 15 10 7 7 11 13 13 13 13 9 5 1 Hackware 1 | . . . . . . . . . . . . 4 6 6 6 1 . . Protection 10 | . 5 14 14 14 9 7 11 8 9 16 14 10 13 12 13 11 10 4 Ballistic Gun 11 | . 19 28 28 28 17 20 13 8 1 7 6 5 6 6 8 11 10 4 Ballistic Cannon 9 | . . . . . . 1 8 10 12 12 16 16 19 19 16 10 9 10 Peak Build Rating 102 | 7 9 9 10 11 28 32 48 53 52 49 57 65 61 64 64 74 92 102 Average Rating 47 | 4 8 9 9 10 23 30 41 49 47 47 54 58 59 61 62 68 87 75 On Entrance 39 | . 6 9 9 10 11 26 32 44 52 48 46 56 58 61 62 63 74 92 Avg Prop Armor Cover (%) . | . . . . . . . . . . . . . . . . . . . Naked Turns 4 | . . . . . . . . . . . . . . . . . . 4 Heaviest Build 185 | 13 92 92 92 92 99 102 112 131 150 134 141 142 136 136 135 147 174 185 Greatest Support 118 | 26 26 26 26 26 26 32 40 40 38 36 36 30 30 30 30 40 40 118 Greatest Overweight (x) 8 | . 4 3 3 3 8 3 4 4 5 3 6 6 6 4 4 3 5 7 Average Overweight (x) 3 | . 2 3 3 3 3 3 2 2 3 3 3 3 4 4 4 3 3 3 Largest Inventory Capacity 25 | 8 25 25 25 25 25 25 25 25 25 25 25 25 25 25 25 25 25 25 Average Capacity 24 | 7 21 25 25 25 25 25 25 25 25 25 25 25 25 25 25 25 25 24 Most Carried 25 | 6 16 15 20 21 25 25 25 25 24 25 25 25 25 25 25 25 25 24 Average Carried 22 | 2 12 15 17 20 22 24 24 24 22 23 23 24 24 25 24 24 23 19 Final Capacity 25 | 8 25 25 25 25 25 25 25 25 25 25 25 25 25 25 25 25 25 5 Final Carried 25 | 5 14 15 19 21 24 25 25 23 22 22 25 25 25 25 25 25 24 5 Class Distribution -------------------- 23% | Scavenger-Gunner 20% | Mutant 18% | Gunner 14% | Commander-Gunner 13% | Scavenger-Tank 6% | Tank Dominant Class ---------------- Mutant | -10/Materials Mutant | -10/Mines Mutant | -10/Exiles Mutant | -9/Mines Mutant | -8/Materials Scavenger-Gunner | -7/Factory Gunner | -7/Garrison Gunner | -7/Factory Gunner | -7/Lower Caves Tank | -7/Lower Caves Scavenger-Gunner | -6/Factory Commander-Gunner | -6/Extension Commander-Gunner | -6/Cetus Commander-Gunner | -6/Archives Scavenger-Gunner | -6/Hub_04(d) Scavenger-Gunner | -5/Factory Scavenger-Tank | -4/Factory Scavenger-Tank | -3/Research Resources | -11 -10 -10 -10 -9 -8 -7 -7 -7 -7 -7 -6 -6 -6 -6 -6 -5 -4 -3 ----------- Run | Yrd Mat Min Exi Min Mat Fac Gar Fac Low Low Fac Ext Cet Arc Hub Fac Fac Res Matter Collected 11164 | 225 386 . 30 24 451 74 1493 455 769 529 898 1693 87 142 396 494 963 2055 Remotely 3575 | . . . . . 264 . 247 . 648 232 693 . . . . . . 1491 Salvage Created 8076 | 48 386 . . 81 589 71 1064 314 186 523 759 720 . 65 407 539 769 1555 Parts 392 | 8 25 . . 5 21 5 49 22 6 20 33 25 . 2 22 33 42 74 Haulers Intercepted 2 | . . . . . . . . . . . . . . . 1 . 1 . Recyclers Shooed 8 | . . . . . . . . . . . 1 . . . 1 . . 6 Parts Field Recycled . | . . . . . . . . . . . . . . . . . . . Retrieved Matter . | . . . . . . . . . . . . . . . . . . . Parts Self-Destructed 25 | . . . . . . . . . 6 19 . . . . . . . . Prevented . | . . . . . . . . . . . . . . . . . . . Parts Restored . | . . . . . . . . . . . . . . . . . . . Kills | -11 -10 -10 -10 -9 -8 -7 -7 -7 -7 -7 -6 -6 -6 -6 -6 -5 -4 -3 ------- Run | Yrd Mat Min Exi Min Mat Fac Gar Fac Low Low Fac Ext Cet Arc Hub Fac Fac Res Combat Hostiles Destroyed 165 | . 9 . . 2 11 1 31 4 10 18 8 12 . 1 7 8 14 29 Guns 64 | . 9 . . 2 11 1 19 . . 6 3 . . . 3 3 4 3 Cannons 63 | . . . . . . . 10 4 7 4 3 7 . 1 3 4 6 14 AOE 37 | . . . . . . . 2 . 3 8 2 5 . . . 1 4 12 Classes Destroyed 19 | 1 5 . . . 2 . 2 . 1 4 1 . . . 1 . . 2 Worker 35 | . 2 . . . 1 . . 5 . . 9 1 . . 3 1 4 9 Builder 13 | . 1 . . . . . . . . . . 2 . . 1 1 2 6 Tunneler 5 | 2 . . . . . 1 . 1 . . . . . . . 1 . . Hauler 2 | . . . . . . . . . . . . . . . 1 . 1 . Recycler 10 | . . . . . . . . . . . 4 2 . . . . 1 3 Mechanic 1 | . . . . . . . . . . . . . . . . . . 1 Operator 5 | . 1 . . . . . . . . . 1 1 . . 2 . . . Watcher 7 | . . . . . 1 . . 1 . . . 2 . . . 2 . 1 Swarmer 34 | . 3 . . . . . 8 . 6 2 4 . . . 2 . 5 4 Grunt 66 | . 6 . . 2 8 . 16 2 2 6 2 8 . . 1 3 . 10 Brawler 7 | . . . . . . . . . . 5 . 1 . . . 1 . . Duelist 4 | . . . . . . . . . . 3 . . . . . . . 1 Protector 1 | . . . . . . . . . . 1 . . . . . . . . Sentry 21 | . . . . . 3 1 5 1 1 . 2 2 . 1 1 . 2 2 Specialist 1 | . . . . . . . 1 . . . . . . . . . . . Hunter 14 | . . . . . . . 1 1 . . . . . . 2 2 2 6 Programmer 13 | . . . . . . . . . . 1 . . . . 1 2 4 5 Heavy 1 | . . . . . . . . . . . . . . . . . . 1 Behemoth 3 | . . . . . . . . . 1 . . 1 . . . . 1 . Guerrilla 1 | . . . . . . . . 1 . . . . . . . . . . Infiltrator 1 | . . . . . . . . 1 . . . . . . . . . . Best Kill Streak 32 | 1 3 . . 2 3 1 5 2 5 12 16 6 . 1 6 5 9 32 Combat Bots Only 16 | . 3 . . 2 3 1 5 2 5 12 7 6 . 1 4 4 7 16 Max Kills in Single Turn 5 | 1 2 . . 1 1 1 3 3 2 3 3 3 . 1 2 1 3 5 Gunslinging 1 | . 1 . . . . . . . . . . . . . . . . . Exploded 3 | . . . . . . . 1 . 1 2 2 3 . . . 1 2 3 Melee . | . . . . . . . . . . . . . . . . . . . Uniques/NPCs Destroyed . | . . . . . . . . . . . . . . . . . . . Combat | -11 -10 -10 -10 -9 -8 -7 -7 -7 -7 -7 -6 -6 -6 -6 -6 -5 -4 -3 -------- Run | Yrd Mat Min Exi Min Mat Fac Gar Fac Low Low Fac Ext Cet Arc Hub Fac Fac Res Hostile Shots Fired 1504 | . 51 . . 5 66 36 190 30 94 76 79 231 24 1 29 38 80 474 Missed 530 | . 12 . . 3 17 15 48 9 39 31 38 111 6 . 8 12 33 148 Hits 974 | . 39 . . 2 49 21 142 21 55 45 41 120 18 1 21 26 47 326 Melee 19 | . . . . . . . . . . 1 . . . . . . . 18 Projectile 955 | . 39 . . 2 49 21 142 21 55 44 41 120 18 1 21 26 47 308 AOE 1 | . . . . . 1 . . . . . . . . . . . . . Critical Strikes 32 | . . . . . 4 . 4 . 1 . . 3 3 . . . 3 14 Damage Taken 16409 | . 413 . . 32 912 171 1703 508 858 685 757 1777 507 28 288 495 827 6448 Core 2391 | . 57 . . 15 177 39 254 15 39 95 97 198 20 . 6 38 39 1302 Absorbed by Shields 1283 | . . . . . . . . . 127 65 . . . . . . 254 837 Ignored by Resistances 830 | . . . . . . . . . 102 86 24 100 . . . . . 518 Core Remaining (%) 75 | 100 . . . 71 67 . . . . 36 . . . . 62 96 96 . Volleys Fired 488 | 5 30 . . 4 50 5 84 22 28 20 27 42 2 4 18 22 35 90 Largest 4 | 1 2 . . 2 2 3 3 3 2 3 4 4 4 4 4 4 4 4 Hottest 167 | 20 70 . . 40 88 86 110 105 105 119 148 158 158 163 163 145 153 167 Shots Fired 1291 | 5 57 . . 8 100 15 191 48 54 57 79 124 8 16 68 70 117 274 Gun 599 | 5 57 . . 8 100 14 111 17 1 20 32 31 2 4 24 44 65 64 Cannon 631 | . . . . . . 1 76 31 48 24 41 87 6 12 44 23 46 192 Launcher 61 | . . . . . . . 4 . 5 13 6 6 . . . 3 6 18 Special . | . . . . . . . . . . . . . . . . . . . Kinetic 1200 | 5 37 . . 8 90 15 187 48 49 44 73 118 8 16 68 67 111 256 Thermal 30 | . 20 . . . 10 . . . . . . . . . . . . . Explosive 61 | . . . . . . . 4 . 5 13 6 6 . . . 3 6 18 Electromagnetic . | . . . . . . . . . . . . . . . . . . . Robot Hit Streak 28 | 2 22 . . 3 15 21 28 7 17 18 7 12 3 5 6 10 15 10 Robot Miss Streak 8 | 1 1 . . 1 3 . 3 3 2 8 7 6 4 2 4 4 5 7 Penetration Max 2 | . . . . . . . 2 . . . . 1 . . 1 1 . 1 Secondary Targets 1 | . 1 . . . . . . . . . . . . . . . . . Max Gunslinging Chain 1 | . 1 . . . . . . . . . . . . . . . . . Shots Hit Robots 821 | 3 46 . . 6 80 14 122 25 35 41 52 107 5 11 31 32 72 139 Core Hits 573 | 2 18 . . 5 38 5 88 18 15 66 61 44 4 2 17 24 41 125 Critical Kills 15 | . . . . . 1 . . . . . 1 4 . . 2 2 2 3 Critical Parts Destroyed 14 | . . . . . . . . . . . . 3 . 1 4 3 1 2 Critical Strikes 68 | . . . . . 1 . 3 2 3 . 5 14 . 2 9 5 9 15 Destroy 32 | . . . . . 1 . . . . . 1 7 . 2 6 5 5 5 Blast 36 | . . . . . . . 3 2 3 . 4 7 . . 3 . 4 10 Melee Attacks 42 | . . . . . . . . . . . . 40 1 1 . . . . Impact . | . . . . . . . . . . . . . . . . . . . Slashing . | . . . . . . . . . . . . . . . . . . . Piercing . | . . . . . . . . . . . . . . . . . . . Sneak Attacks 36 | . . . . . . . . . . . . 35 . 1 . . . . Combat Hostiles 1 | . . . . . . . . . . . . . . 1 . . . . Follow-up Attacks . | . . . . . . . . . . . . . . . . . . . Damage Inflicted 27941 | 33 597 . . 74 1204 254 3129 985 1855 2171 1976 3088 94 281 935 1157 2966 7142 Guns 9284 | 33 597 . . 74 1196 223 1865 175 . 358 534 432 40 103 279 734 1443 1198 Cannons 11058 | . . . . . . 31 873 603 1624 406 623 1786 54 178 656 285 954 2985 Explosions 7591 | . . . . . . . 391 207 231 1407 819 870 . . . 138 569 2959 Melee . | . . . . . . . . . . . . . . . . . . . Ramming 8 | . . . . . 8 . . . . . . . . . . . . . Kinetic 19970 | 33 381 . . 74 1040 254 2738 778 1624 764 1157 2218 94 281 935 1019 2397 4183 Thermal 992 | . 216 . . . 156 . . 207 . . 413 . . . . . . . Explosive 6971 | . . . . . . . 391 . 231 1407 406 870 . . . 138 569 2959 Electromagnetic . | . . . . . . . . . . . . . . . . . . . Impact . | . . . . . . . . . . . . . . . . . . . Slashing . | . . . . . . . . . . . . . . . . . . . Piercing . | . . . . . . . . . . . . . . . . . . . Highest Corruption 24 | . . . . . . . . 3 3 3 3 3 . . 1 . 4 24 Average Corruption 3 | . . . . . . . . 2 3 3 2 2 . . 1 . 2 8 Corruption Purged 3 | . . . . . . . . . . . . 3 . . . . . . Corruption Blocked . | . . . . . . . . . . . . . . . . . . . Effects 72 | . . . . . . . . 9 7 14 1 16 . . 1 . 6 18 Message Errors 18 | . . . . . . . . 2 2 3 . 4 . . . . 1 6 Matter Fused 13 | . . . . . . . . 2 2 . 1 3 . . 1 . 1 3 Heat Flow Errors 10 | . . . . . . . . 1 1 3 . 2 . . . . . 3 Energy Discharges 9 | . . . . . . . . . . 5 . 2 . . . . 2 . Parts Fused 2 | . . . . . . . . 1 . 1 . . . . . . . . Data Loss (minor) 10 | . . . . . . . . . 2 . . 4 . . . . 1 3 Data Loss (major) 3 | . . . . . . . . 1 . 1 . 1 . . . . . . Misfires 3 | . . . . . . . . 1 . 1 . . . . . . 1 . Alerts 1 | . . . . . . . . 1 . . . . . . . . . . Weapon Failures 3 | . . . . . . . . . . . . . . . . . . 3 Overload Shots . | . . . . . . . . . . . . . . . . . . . Overflow Damage 717 | . . . . . . . 8 83 108 5 330 65 . . 20 . 23 75 Projectiles 379 | . . . . . . . 8 54 108 . 54 65 . . 20 . 23 47 Explosions 338 | . . . . . . . . 29 . 5 276 . . . . . . 28 Melee . | . . . . . . . . . . . . . . . . . . . Knockbacks 76 | . . . . . . . 8 1 2 2 4 13 . . 6 4 . 36 Impact . | . . . . . . . . . . . . . . . . . . . Kinetic 65 | . . . . . . . 6 1 2 1 4 11 . . 5 3 . 32 Secondary 11 | . . . . . . . 2 . . 1 . 2 . . 1 1 . 4 Self-Inflicted Damage 553 | . . . . . 4 . . 101 . 66 331 . . . . . . 51 Shots 13 | . . . . . . . . 1 . 3 6 . . . . . . 3 Rammed 2 | . . . . . 1 . . . . . . . . . . . . 1 Targets Rammed 2 | . . . . . 1 . . . . . . . . . . . . 1 Kicked . | . . . . . . . . . . . . . . . . . . . Crushed . | . . . . . . . . . . . . . . . . . . . Highest Temperature 344 | . 165 . . 5 165 . 304 262 137 235 26 306 42 106 146 42 215 344 Average Temperature 86 | . 45 . . 3 74 . 86 100 69 115 9 83 22 44 51 16 39 176 Received Heat Transfer 3734 | . 204 . . 18 450 54 570 108 149 222 129 844 72 . 33 81 42 758 Effects 8 | . . . . . . . 2 . . . . 1 . . . . . 5 Interference 6 | . . . . . . . 2 . . . . . . . . . . 4 Matter Decay 1 | . . . . . . . . . . . . 1 . . . . . . Damage (minor) 1 | . . . . . . . . . . . . . . . . . . 1 Siege Activations . | . . . . . . . . . . . . . . . . . . . Martial Activations . | . . . . . . . . . . . . . . . . . . . Shielding Activations . | . . . . . . . . . . . . . . . . . . . Robots Disrupted . | . . . . . . . . . . . . . . . . . . . Combat Hostiles . | . . . . . . . . . . . . . . . . . . . Robots Corrupted 1 | . . . . . . . . . . . . . . . 1 . . . Combat Hostiles 1 | . . . . . . . . . . . . . . . 1 . . . Parts Fried 1 | . . . . . . . . . . . . . . . 1 . . . Impact Corruptions 1 | . . . . . . . . . . . . . . . 1 . . . Robots Melted . | . . . . . . . . . . . . . . . . . . . Combat Hostiles . | . . . . . . . . . . . . . . . . . . . Parts Melted 3 | . 2 . . . 1 . . . . . . . . . . . . . Heat Transferred 1299 | . 629 . . . 370 . . 100 . . 200 . . . . . . . Parts Sabotaged . | . . . . . . . . . . . . . . . . . . . Parts Stolen . | . . . . . . . . . . . . . . . . . . . Parts Stripped . | . . . . . . . . . . . . . . . . . . . Power Chain Reactions . | . . . . . . . . . . . . . . . . . . . Alert | -11 -10 -10 -10 -9 -8 -7 -7 -7 -7 -7 -6 -6 -6 -6 -6 -5 -4 -3 ------- Run | Yrd Mat Min Exi Min Mat Fac Gar Fac Low Low Fac Ext Cet Arc Hub Fac Fac Res Maximum Alert Level 5 | . . . . . . . 5 4 . . 2 3 2 1 1 . 1 3 Low Security (%) 38 | 100 100 100 . 100 100 100 16 . . . . . . 11 98 100 50 31 Level 1 18 | . . . . . . . 12 . . . 66 39 . 88 1 . 50 6 Level 2 19 | . . . . . . . 19 . . . 33 39 100 . . . . 62 Level 3 14 | . . . . . . . 29 56 . . . 21 . . . . . . Level 4 7 | . . . . . . . 19 43 . . . . . . . . . . Level 5 . | . . . . . . . 2 . . . . . . . . . . . High Security . | . . . . . . . . . . . . . . . . . . . Max Security . | . . . . . . . . . . . . . . . . . . . Peak Influence 1635 | 5 61 10 . 50 87 30 1635 1281 . . 609 891 600 291 206 155 396 703 Initial 858 | . . 10 . . . 7 9 858 . . 415 292 483 232 63 67 56 197 Average 428 | . 23 5 . 5 31 2 720 1054 . . 411 537 528 234 135 108 201 392 Influence Increases 8852 | 10 256 . . 50 444 49 1776 725 220 438 503 1512 307 119 396 308 612 1127 Destroy 0b10 Robot/C 4440 | . 180 . . 40 300 20 760 300 200 380 160 720 140 60 160 160 280 580 Destroy 0b10 Robot/NC 425 | 10 20 . . . 15 5 . 40 . 5 70 55 5 . 35 25 40 100 Destroy Leader 712 | . 40 . . 10 72 10 40 84 20 40 40 66 10 . 52 34 72 122 Allied During Kill 978 | . . . . . 14 . 51 128 . 13 4 533 142 40 53 . . . Successful Hack 155 | . . . . . 10 14 37 23 . . 12 4 8 . 23 12 . 12 Disable Machine 465 | . . . . . . . . 90 . . 120 45 . 15 45 45 45 60 Anti-Garrison Action 750 | . . . . . . . 750 . . . . . . . . . . . Destroy Structure 777 | . 1 . . . 3 . 123 60 . . 97 59 2 4 28 32 160 208 Partial Spotted 45 | . . . . . 30 . . . . . . . . . . . 15 . Lose Combat Pursuer 105 | . 15 . . . . . 15 . . . . 30 . . . . . 45 Influence Decreases 8360 | 10 229 27 . 50 428 51 155 1157 766 436 564 1246 591 518 438 330 353 1011 Entered New Map 3089 | . . 17 . . . 9 5 777 446 126 244 306 381 348 118 72 61 179 Time Decay 3585 | 10 223 10 . 50 298 42 . 350 270 270 230 580 110 130 180 238 252 342 Lost Part 1006 | . 6 . . . 70 . 110 10 30 40 50 120 20 . . 20 40 490 Lost Ally 680 | . . . . . 60 . 40 20 20 . 40 240 80 40 140 . . . Squads Dispatched 38 | . 4 . . . 3 . . 6 . 1 2 5 1 . 3 1 2 10 Investigation 11 | . 2 . . . 1 . . 4 . . . 3 1 . . . . . Extermination 4 | . . . . . . . . . . . . . . . 1 1 1 1 Reinforcement 18 | . 2 . . . 1 . . 1 . . 2 2 . . 1 . 1 8 Assault 2 | . . . . . . . . . . 1 . . . . . . . 1 Garrison 3 | . . . . . 1 . . 1 . . . . . . 1 . . . Intercept . | . . . . . . . . . . . . . . . . . . . Searches Triggered . | . . . . . . . . . . . . . . . . . . . Construction Impeded 6 | . . . . . . . . . . . 2 1 . . . . 1 2 Haulers Reinforced 3 | . . . . . . . . . . . . . . . 1 . . 2 Active Scanning Responses . | . . . . . . . . . . . . . . . . . . . Cargo Convoy Interrupts . | . . . . . . . . . . . . . . . . . . . Stealth | -11 -10 -10 -10 -9 -8 -7 -7 -7 -7 -7 -6 -6 -6 -6 -6 -5 -4 -3 --------- Run | Yrd Mat Min Exi Min Mat Fac Gar Fac Low Low Fac Ext Cet Arc Hub Fac Fac Res Distress Signals 15 | . . . . . 3 . . 1 . . . 3 1 . 2 . 1 4 Communications Jammed . | . . . . . . . . . . . . . . . . . . . Distress Signals . | . . . . . . . . . . . . . . . . . . . Times Spotted 275 | . 13 . . 1 25 1 41 18 10 22 13 37 6 6 10 10 16 46 Peak Tracking Total 13 | . 3 . . 1 5 1 4 6 4 12 6 7 5 2 6 4 5 13 Tactical Retreats 5 | . 1 . . . . . 1 . . . . 1 . . . . . 2 Traps | -11 -10 -10 -10 -9 -8 -7 -7 -7 -7 -7 -6 -6 -6 -6 -6 -5 -4 -3 ------- Run | Yrd Mat Min Exi Min Mat Fac Gar Fac Low Low Fac Ext Cet Arc Hub Fac Fac Res Traps Triggered 21 | . 2 . . . . . 9 4 . . 2 3 . . 1 . . . Indirectly . | . . . . . . . . . . . . . . . . . . . Trap Hack Attempts . | . . . . . . . . . . . . . . . . . . . Triggered . | . . . . . . . . . . . . . . . . . . . Disarmed . | . . . . . . . . . . . . . . . . . . . Reprogrammed . | . . . . . . . . . . . . . . . . . . . Reused . | . . . . . . . . . . . . . . . . . . . Traps Extracted . | . . . . . . . . . . . . . . . . . . . Installed . | . . . . . . . . . . . . . . . . . . . Triggered . | . . . . . . . . . . . . . . . . . . . Machines | -11 -10 -10 -10 -9 -8 -7 -7 -7 -7 -7 -6 -6 -6 -6 -6 -5 -4 -3 ---------- Run | Yrd Mat Min Exi Min Mat Fac Gar Fac Low Low Fac Ext Cet Arc Hub Fac Fac Res Machines Disabled 40 | . . . . . . . 8 6 . . 8 4 . 1 3 3 3 4 Max in Single Turn 4 | . . . . . . . 1 2 . . 4 1 . 1 1 1 1 1 Garrison Access 3 | . . . . . . . . 1 . . . . . . 1 . . 1 Garrison Relay 7 | . . . . . . . 7 . . . . . . . . . . . Machines Repaired . | . . . . . . . . . . . . . . . . . . . Machines Dismantled . | . . . . . . . . . . . . . . . . . . . Machines Sabotaged . | . . . . . . . . . . . . . . . . . . . Overloaded Fab Kills . | . . . . . . . . . . . . . . . . . . . Hacking | -11 -10 -10 -10 -9 -8 -7 -7 -7 -7 -7 -6 -6 -6 -6 -6 -5 -4 -3 --------- Run | Yrd Mat Min Exi Min Mat Fac Gar Fac Low Low Fac Ext Cet Arc Hub Fac Fac Res Machines Accessed 46 | . 3 . . . 4 2 3 7 . 1 5 8 2 . 5 1 1 4 Terminals 28 | . 3 . . . 3 1 3 2 . . 3 7 2 . 4 . . . Fabricators 3 | . . . . . . . . 2 . . 1 . . . . . . . Repair Stations . | . . . . . . . . . . . . . . . . . . . Recycling Units 3 | . . . . . . . . . . . . 1 . . . 1 . 1 Scanalyzers 7 | . . . . . 1 . . 2 . . 1 . . . . . 1 2 Garrison Access 4 | . . . . . . 1 . 1 . . . . . . 1 . . 1 Total Hacks 100 | . 12 . . . 13 2 4 18 . 1 9 11 4 . 13 2 4 7 Successful 37 | . 1 . . . 5 1 3 8 . 1 2 1 1 . 8 1 2 3 Failed 62 | . 11 . . . 7 1 1 10 . . 7 10 3 . 5 1 2 4 Catastrophic 16 | . 1 . . . 2 1 . . . . . 6 1 . 3 . 1 1 Database Lockouts 1 | . . . . . 1 . . . . . . . . . . . . . Manual 54 | . 12 . . . 10 . . 3 . . 6 8 1 2 9 2 . 1 Terminals 64 | . 12 . . . 9 1 4 7 . . 6 10 4 . 11 . . . Fabricators 6 | . . . . . . . . 5 . . 1 . . . . . . . Repair Stations . | . . . . . . . . . . . . . . . . . . . Recycling Units 4 | . . . . . . . . . . . . 1 . . . 2 . 1 Scanalyzers 20 | . . . . . 4 . . 5 . . 2 . . . . . 4 5 Garrison Access 5 | . . . . . . 1 . 1 . . . . . . 2 . . 1 Terminal Hacks 15 | . 1 . . . 1 . 3 1 . 1 . 1 1 . 6 . . . Record 2 | . . . . . . . . . . . . . 1 . 1 . . . Part Schematic 2 | . 1 . . . 1 . . . . . . . . . . . . . Robot Analysis 3 | . . . . . . . . . . . . . . . 3 . . . Open Door 2 | . . . . . . . 1 . . 1 . . . . . . . . Branch Access Points 2 | . . . . . . . . 1 . . . . . . 1 . . . Emergency Access Points 2 | . . . . . . . 1 . . . . . . . 1 . . . Locate Traps 1 | . . . . . . . . . . . . 1 . . . . . . Security Stations 1 | . . . . . . . 1 . . . . . . . . . . . Fabricator Hacks 4 | . . . . . . . . 4 . . . . . . . . . . Load Schematic 2 | . . . . . . . . 2 . . . . . . . . . . Build 2 | . . . . . . . . 2 . . . . . . . . . . Repair Station Hacks . | . . . . . . . . . . . . . . . . . . . Recycling Unit Hacks . | . . . . . . . . . . . . . . . . . . . Scanalyzer 10 | . . . . . 4 . . 1 . . 2 . . . . . 2 1 Insert Component 3 | . . . . . 1 . . . . . . . . . . . 1 1 Analyze 2 | . . . . . 1 . . . . . . . . . . . 1 . Retrieve Study 5 | . . . . . 2 . . 1 . . 2 . . . . . . . Garrison Access Hacks 5 | . . . . . . 1 . 1 . . . . . . 2 . . 1 Unlock Access 1 | . . . . . . 1 . . . . . . . . . . . . Seal Access 3 | . . . . . . . . 1 . . . . . . 1 . . 1 Coupler Status 1 | . . . . . . . . . . . . . . . 1 . . . Unauthorized Hacks 3 | . . . . . . . . 1 . . . . . . . 1 . 1 Terminals 1 | . . . . . . . . 1 . . . . . . . . . . Botnet 1 | . . . . . . . . 1 . . . . . . . . . . Fabricators . | . . . . . . . . . . . . . . . . . . . Repair Stations . | . . . . . . . . . . . . . . . . . . . Recycling Units 2 | . . . . . . . . . . . . . . . . 1 . 1 Reject 2 | . . . . . . . . . . . . . . . . 1 . 1 Scanalyzers . | . . . . . . . . . . . . . . . . . . . Garrison Access . | . . . . . . . . . . . . . . . . . . . Data Cores Recovered 3 | . . . . . . . . . . . 1 1 . . 1 . . . Used . | . . . . . . . . . . . . . . . . . . . Hacking Detections 39 | . 3 . . . 4 2 . 6 . . 5 7 3 . 4 1 1 3 Full Trace Events 7 | . . . . . 1 . . 4 . . . 1 1 . . . . . Feedback Events . | . . . . . . . . . . . . . . . . . . . Feedback Blocked . | . . . . . . . . . . . . . . . . . . . Robot Schematics Acquired . | . . . . . . . . . . . . . . . . . . . Robots Built . | . . . . . . . . . . . . . . . . . . . Authchips . | . . . . . . . . . . . . . . . . . . . Time . | . . . . . . . . . . . . . . . . . . . Total Robot Build Rating . | . . . . . . . . . . . . . . . . . . . Part Schematics Acquired 4 | . 1 . . . 2 . . . . . . . . . . . 1 . Parts Built 2 | . . . . . . . . 2 . . . . . . . . . . Authchips . | . . . . . . . . . . . . . . . . . . . Time 146 | . . . . . . . . 146 . . . . . . . . . . Total Part Build Rating 6 | . . . . . . . . 6 . . . . . . . . . . Part Studies Acquired 5 | . . . . . 2 . . 1 . . 2 . . . . . . . Parts Repaired . | . . . . . . . . . . . . . . . . . . . Time . | . . . . . . . . . . . . . . . . . . . Parts Recycled . | . . . . . . . . . . . . . . . . . . . Recycled Matter . | . . . . . . . . . . . . . . . . . . . Retrieved Matter . | . . . . . . . . . . . . . . . . . . . Retrieved Components . | . . . . . . . . . . . . . . . . . . . Parts Scanalyzed 3 | . . . . . 1 . . . . . . . . . . . 1 1 Part Schematics Acquired 2 | . . . . . 1 . . . . . . . . . . . 1 . Parts Damaged 1 | . . . . . . . . . . . . . . . . . . 1 Bothacking | -11 -10 -10 -10 -9 -8 -7 -7 -7 -7 -7 -6 -6 -6 -6 -6 -5 -4 -3 ------------ Run | Yrd Mat Min Exi Min Mat Fac Gar Fac Low Low Fac Ext Cet Arc Hub Fac Fac Res Used RIF Installer 1 | . . . . . . . 1 . . . . . . . . . . . Robots Hacked 4 | . . . . . . . . . . . . 3 . 1 . . . . Non-combat . | . . . . . . . . . . . . . . . . . . . Combat 4 | . . . . . . . . . . . . 3 . 1 . . . . Robot Hacks Applied 4 | . . . . . . . . . . . . 3 . 1 . . . . overwrite_iff 1 | . . . . . . . . . . . . 1 . . . . . . formatsys_high 3 | . . . . . . . . . . . . 2 . 1 . . . . Relay Couplers Released 25 | . . . . . . . 24 1 . . . . . . . . . . Machine Destruction 25 | . . . . . . . 24 1 . . . . . . . . . . Attached 2 | . . . . . . . . . . . . 2 . . . . . . Fabnet Peak Effective % . | . . . . . . . . . . . . . . . . . . . Robots Rewired 33 | . . . . . . . 6 . . 2 . 25 . . . . . . Allies Hacked . | . . . . . . . . . . . . . . . . . . . Hacks Repelled . | . . . . . . . . . . . . . . . . . . . Allies | -11 -10 -10 -10 -9 -8 -7 -7 -7 -7 -7 -6 -6 -6 -6 -6 -5 -4 -3 -------- Run | Yrd Mat Min Exi Min Mat Fac Gar Fac Low Low Fac Ext Cet Arc Hub Fac Fac Res Total Allies 43 | . . . . 3 . . 9 . . 2 . 28 . 1 . . . . Largest Group 16 | . . . . 3 3 . 6 6 1 2 2 16 14 9 7 . . . Highest-Rated Group 487 | . . . . 40 40 . 295 295 28 46 46 487 372 261 206 . . . Highest-Rated Ally 80 | . . . . 16 16 . 80 80 28 30 30 39 38 49 49 . . . Total Orders . | . . . . . . . . . . . . . . . . . . . Ally Attacks 415 | . . . . . 38 . 29 41 3 9 5 208 41 23 18 . . . Total Damage 7703 | . . . . . 393 . 677 1056 56 83 69 3523 814 593 439 . . . Kills 69 | . . . . . 5 . 8 12 . 2 . 29 10 2 1 . . . Allies Corrupted 1 | . . . . . . . . 1 . . . . . . . . . . Allies Melted 1 | . . . . . . . . . . . . 1 . . . . . . Intel | -11 -10 -10 -10 -9 -8 -7 -7 -7 -7 -7 -6 -6 -6 -6 -6 -5 -4 -3 ------- Run | Yrd Mat Min Exi Min Mat Fac Gar Fac Low Low Fac Ext Cet Arc Hub Fac Fac Res Active Infowar (turns) 1679 | 33 329 . . . 346 305 269 . . . . . . . . . . 397 Seismic 1679 | 33 329 . . . 346 305 269 . . . . . . . . . . 397 Robot Analysis Total 3 | . . . . . . . . . . . . . . . 3 . . . Derelict Logs Recovered 1 | . . . . 1 . . . . . . . . . . . . . . Drone Launches . | . . . . . . . . . . . . . . . . . . . Drone Recoveries . | . . . . . . . . . . . . . . . . . . . Exploration | -11 -10 -10 -10 -9 -8 -7 -7 -7 -7 -7 -6 -6 -6 -6 -6 -5 -4 -3 ------------- Run | Yrd Mat Min Exi Min Mat Fac Gar Fac Low Low Fac Ext Cet Arc Hub Fac Fac Res Turns Passed 11802 | 89 537 34 300 457 756 305 2311 798 587 593 483 1796 221 271 363 503 624 774 Spaces Moved 7066 | 70 332 25 219 328 364 208 1530 511 365 402 285 914 145 165 219 350 371 263 Core 10 | 2 . . . . . . . . . . . . . . . . . 8 Treads 47 | . . . . . . . . . . . . . . . . . . 47 Legs . | . . . . . . . . . . . . . . . . . . . Wheels 7009 | 68 332 25 219 328 364 208 1530 511 365 402 285 914 145 165 219 350 371 208 Hover . | . . . . . . . . . . . . . . . . . . . Flight . | . . . . . . . . . . . . . . . . . . . Fastest Speed 50 | 50 80 135 135 135 125 121 120 120 121 121 115 115 130 130 130 115 115 50 Average Speed 125 | 85 120 135 135 135 134 121 121 127 126 121 125 127 130 130 130 115 121 144 Slowest Speed 243 | 100 140 135 135 135 210 121 150 150 155 121 160 160 160 130 130 115 145 243 Overloaded Moves . | . . . . . . . . . . . . . . . . . . . Propulsion Burnouts . | . . . . . . . . . . . . . . . . . . . Robots Hopped . | . . . . . . . . . . . . . . . . . . . Potential Cave-ins . | . . . . . . . . . . . . . . . . . . . Cave-ins Triggered . | . . . . . . . . . . . . . . . . . . . Exploration Rate (%) 41 | 3 65 9 61 75 36 4 98 17 51 59 11 82 62 96 27 9 11 11 Regions Visited 18 Branch Regions 9 Pre-discovered Areas . | . . . . . . . . . . . . . . . . . . . Known Exits Taken 3 | . . . . . 1 1 . 1 . . . . . . . . . . Unknown Exits Taken 14 | 1 1 1 1 1 . . . . 1 1 1 1 1 1 1 1 1 . Scrap Searched 8 | . . . . 1 . . . . 1 6 . . . . . . . . Spaces Dug 4 | . . . . . . . . 4 . . . . . . . . . . Terrain Destroyed 638 | . . . . . . . 27 58 33 104 118 34 2 2 26 18 103 113 Melee . | . . . . . . . . . . . . . . . . . . . Projectile 177 | . . . . . . . 4 9 12 2 16 19 2 2 26 15 60 10 AOE 461 | . . . . . . . 23 49 21 102 102 15 . . . 3 43 103 Terrain Rammed . | . . . . . . . . . . . . . . . . . . . Walls Destroyed . | . . . . . . . . . . . . . . . . . . . Machines Disabled . | . . . . . . . . . . . . . . . . . . . Actions | -11 -10 -10 -10 -9 -8 -7 -7 -7 -7 -7 -6 -6 -6 -6 -6 -5 -4 -3 --------- Run | Yrd Mat Min Exi Min Mat Fac Gar Fac Low Low Fac Ext Cet Arc Hub Fac Fac Res Total 9028 | 90 414 25 224 334 540 257 1848 624 425 464 353 1456 171 211 260 403 467 462 Wait 614 | . 28 . . 1 81 17 75 46 11 10 6 236 17 34 . 7 13 32 Move 7050 | 69 331 24 218 327 364 208 1529 510 364 401 284 913 144 164 218 349 370 263 Hop . | . . . . . . . . . . . . . . . . . . . Pick Up 186 | 5 14 1 5 2 20 11 24 10 5 7 15 36 1 . 6 6 9 9 Fast Attach 51 | 6 . . . . 1 1 3 3 1 1 1 8 1 2 3 2 6 12 Attach 104 | . 3 . . . 10 4 12 2 5 4 8 14 2 . . 3 8 29 Detach 26 | . . . . . 1 . 1 1 . 1 . 6 1 1 . . 7 7 Swap 116 | 3 4 . . . 4 3 16 6 10 6 5 24 2 3 4 7 7 12 Drop 149 | 2 4 . 1 . 9 8 24 16 1 5 7 33 . 2 11 7 12 7 Fire 488 | 5 30 . . 4 50 5 84 22 28 20 27 42 2 4 18 22 35 90 Melee 42 | . . . . . . . . . . . . 40 1 1 . . . . Ram . | . . . . . . . . . . . . . . . . . . . Kick . | . . . . . . . . . . . . . . . . . . . Crush 1 | . . . . . . . . . . . . . . . . . . 1 Escape Stasis 48 | . . . . . . . 40 8 . . . . . . . . . . Rewire 153 | . . . . . . . 40 . . 9 . 104 . . . . . . Trap . | . . . . . . . . . . . . . . . . . . . Miscellaneous . | . . . . . . . . . . . . . . . . . . . Route ------- -11/Scrapyard -10/Materials (discovered 2 exits: [*Mat] / [*Min]) -10/Mines -10/Exiles -9/Mines -8/Materials -7/Factory (discovered 2 exits: *Low / Gar) -7/Garrison (discovered 4 exits: *Fac x4) -7/Factory (discovered 3 exits: *Fac / *Low x2) -7/Lower Caves -7/Lower Caves -6/Factory -6/Extension (discovered 2 exits: *Fac / *Cet) -6/Cetus -6/Archives (discovered 3 exits: *Fac / *Hub x2) -6/Hub_04(d) -5/Factory -4/Factory -3/Research History --------- Turn | Location | Event 21 | -11/Scrapyard | Discovered new exit (range 15) 90 | -11/Scrapyard | Entered Materials 309 | -10/Materials | Build established: Mutant 330 | -10/Materials | Discovered new exit (range 16) 516 | -10/Materials | Discovered new exit (range 12) 627 | -10/Materials | Entered Mines 655 | -10/Mines | Deemed a non-threat by the Exiles lab entrance 655 | -10/Mines | Discovered new exit (range 5) 661 | -10/Mines | Entered Exiles 698 | -10/Exiles | Met 8R-AWN 720 | -10/Exiles | Met EX-HEX 764 | -10/Exiles | Met EX-BIN 787 | -10/Exiles | Met EX-DEC 950 | -10/Exiles | Discovered new exit (range 10) 961 | -10/Exiles | Entered Mines 1001 | -9/Mines | Met a Derelict bent on vengeance 1039 | -9/Mines | Assisted by bots powering up and referring to "LRC-V3" 1120 | -9/Mines | Learned 2 Materials zone layouts 1410 | -9/Mines | Discovered new exit (range 7) 1418 | -9/Mines | Entered Materials 1418 | -8/Materials | Accompanied by 3 allies 1418 | -8/Materials | Evolved 4 slots: Utility x4 1419 | -8/Materials | Identified exit to Factory 1445 | -8/Materials | Garrison activated, responded to threat 2035 | -8/Materials | Central database locked down 2174 | -8/Materials | Entered Factory 2174 | -7/Factory | Evolved 2 slots: Propulsion x1, Weapon x1 2251 | -7/Factory | Discovered new exit (range 14) 2473 | -7/Factory | Build established: Scavenger-Gunner 2479 | -7/Factory | Identified exit to Garrison 2479 | -7/Factory | Entered Garrison 2855 | -7/Garrison | Triggered checkpoint 2909 | -7/Garrison | Discovered new exit (range 13) 2965 | -7/Garrison | Triggered checkpoint 3015 | -7/Garrison | Garrison Relay disabled 3042 | -7/Garrison | Learned Factory security intel 3093 | -7/Garrison | Triggered checkpoint 3218 | -7/Garrison | Discovered new exit (range 10) 3317 | -7/Garrison | Triggered checkpoint 3332 | -7/Garrison | Garrison Relay disabled 3399 | -7/Garrison | Triggered checkpoint 3608 | -7/Garrison | Garrison Relay disabled 3629 | -7/Garrison | Triggered checkpoint 3649 | -7/Garrison | Discovered new exit (range 12) 3700 | -7/Garrison | Rescued a captive Derelict 3706 | -7/Garrison | Build established: Gunner 3706 | -7/Garrison | Lost 3 parts (1p1n1u) 3798 | -7/Garrison | Discovered new exit (range 5) 3805 | -7/Garrison | Triggered checkpoint 4019 | -7/Garrison | Garrison Relay disabled 4217 | -7/Garrison | Triggered checkpoint 4231 | -7/Garrison | Garrison Relay disabled 4349 | -7/Garrison | Triggered checkpoint 4376 | -7/Garrison | Found embedded Infiltrators 4380 | -7/Garrison | Garrison Relay disabled 4605 | -7/Garrison | Triggered checkpoint 4629 | -7/Garrison | Triggered checkpoint 4640 | -7/Garrison | Garrison Relay disabled 4690 | -7/Garrison | Installed Relay Interface Framework 4790 | -7/Garrison | Entered Factory 4790 | -7/Factory | Accompanied by 6 allies 4844 | -7/Factory | Noticed a derelict Sapper rigging charges 4906 | -7/Factory | Fabricated Hvy. Armor Plating (x1) 5145 | -7/Factory | Identified exit to Lower Caves 5231 | -7/Factory | Garrison activated, responded to threat 5401 | -7/Factory | Fabricated Hvy. Armor Plating? 5517 | -7/Factory | Discovered new exit (range 8) 5588 | -7/Factory | Entered Lower Caves 5588 | -7/Lower Caves | Accompanied by 1 ally 5803 | -7/Lower Caves | Attracted the attention of an 0b10 checkpoint 5951 | -7/Lower Caves | Spotted B-75 Beast 6031 | -7/Lower Caves | Destroyed B-75 Beast 6086 | -7/Lower Caves | Discovered new exit (range 5) 6175 | -7/Lower Caves | Entered another Lower Caves area 6487 | -7/Lower Caves | Build established: Tank 6576 | -7/Lower Caves | Attracted the attention of an 0b10 outpost 6584 | -7/Lower Caves | Core integrity fell below 50% 6646 | -7/Lower Caves | Lost 3 parts (1p1u1w) 6654 | -7/Lower Caves | Destroyed 12 combat bots 6727 | -7/Lower Caves | Discovered new exit (range 8) 6768 | -7/Lower Caves | Entered Factory 6768 | -6/Factory | Accompanied by 2 allies 6768 | -6/Factory | Evolved 2 slots: Utility x1, Weapon x1 7137 | -6/Factory | Build established: Scavenger-Gunner 7160 | -6/Factory | Discovered new exit (range 14) 7214 | -6/Factory | Lost 3 parts (1p1n1u) 7217 | -6/Factory | Destroyed 7 combat bots 7251 | -6/Factory | Entered Extension 7320 | -6/Extension | Lost 5 parts (2n1u2w) 7935 | -6/Extension | Spotted B-75 Beast 7943 | -6/Extension | Spotted B-75 Beast 7970 | -6/Extension | Destroyed B-75 Beast 7987 | -6/Extension | Allies destroyed B-75 Beast 7992 | -6/Extension | Lost 4 allies 8010 | -6/Extension | Lost 6 parts (2n2u2w) 8109 | -6/Extension | Build established: Commander-Gunner 8481 | -6/Extension | Found Hvy. Reflective Plating 8704 | -6/Extension | Lost 7 allies 8976 | -6/Extension | Discovered new exit (range 10) 8977 | -6/Extension | Discovered new exit (range 6) 9047 | -6/Extension | Entered Cetus 9047 | -6/Cetus | Accompanied by 14 allies 9064 | -6/Cetus | Spotted Cetus Guard 9065 | -6/Cetus | Spotted Cetus Guard 9067 | -6/Cetus | Spotted Cetus Guard 9067 | -6/Cetus | Spotted Cetus Guard 9070 | -6/Cetus | Allies destroyed Cetus Guard 9091 | -6/Cetus | Allies destroyed Cetus Guard 9092 | -6/Cetus | Allies destroyed Cetus Guard 9096 | -6/Cetus | Allies destroyed Cetus Guard 9129 | -6/Cetus | Lost 4 allies 9191 | -6/Cetus | Discovered new exit (range 15) 9268 | -6/Cetus | Entered Archives 9268 | -6/Archives | Accompanied by 8 allies 9343 | -6/Archives | Unable to access archive contents 9364 | -6/Archives | Unable to access archive contents 9393 | -6/Archives | Discovered new exit (range 15) 9407 | -6/Archives | Discovered new exit (range 13) 9451 | -6/Archives | Discovered new exit (range 14) 9539 | -6/Archives | Entered Hub_04(d) 9539 | -6/Hub_04(d) | Accompanied by 7 allies 9553 | -6/Hub_04(d) | Garrison activated, responded to threat 9642 | -6/Hub_04(d) | Lost 7 allies 9857 | -6/Hub_04(d) | Discovered new exit (range 6) 9864 | -6/Hub_04(d) | Build established: Scavenger-Gunner 9902 | -6/Hub_04(d) | Entered Factory 9902 | -5/Factory | Evolved 2 slots: Power x1, Propulsion x1 9997 | -5/Factory | Discovered new exit (range 14) 10405 | -5/Factory | Entered another Factory area 10405 | -4/Factory | Evolved 2 slots: Utility x2 10619 | -4/Factory | Build established: Scavenger-Tank 10752 | -4/Factory | Destroyed 7 combat bots 10769 | -4/Factory | Spotted B-86 Titan 10791 | -4/Factory | Destroyed B-86 Titan 10853 | -4/Factory | Discovered new exit (range 15) 11029 | -4/Factory | Entered Research 11029 | -3/Research | Evolved 2 slots: Utility x2 11367 | -3/Research | Destroyed 16 combat bots 11376 | -3/Research | Lost 16 parts (4n9u3w) 11504 | -3/Research | Lost 5 parts (1p2n2w) 11529 | -3/Research | First assault squad dispatched 11571 | -3/Research | System corruption reached 10% 11747 | -3/Research | Lost 3 parts (1p1n1u) 11788 | -3/Research | Core integrity fell below 50% 11800 | -3/Research | Core integrity fell below 20% 11803 | -3/Research | Destroyed by G-73 Enforcer with Phase Gun Last Messages --------------- 11795_ Penetrated by Slug. 11795_ Slug penetrates Wall. 11796_ Mni. Assault Cannon destroyed. 11796_ Slug penetrates Catalytron. 11798_ Antimatter Diverter explodes. 11798_ W-44 Eye destroyed. 11798_ Mni. Assault Cannon destroyed. 11798_ Knocked back. 11798_ Penetrated by Slug. 11798_ Slug penetrates Wall. 11799_ Critical hit (Burn: +50). 11799_ Penetrated by Slug. 11799_ Slug penetrates Wall. 11799_ Dropped Huge Storage Unit. 11802_ Penetrated by Slug. 11802_ Knocked back. 11802_ Penetrated by Slug. 11803_ Slug penetrates Wall. 11803_ Penetrated by Slug. 11803_ Slug penetrates Wall. Map ----- +----------------------------------------------------+ | ?????????????????????????????????????????????????? | | ?????????????????????????????????????????????????? | | ?????????????????????????????????????????????????? | | ?????????????????????????????????????????????????? | | ?????????????????????????????????????????????????? | | ?????????????????????????????????????????????????? | | ?????????????????????????????????????????????????? | | ?????????????????????????????????????????????????? | | ?????????????????????????????????????????????????? | | ?????????????????????????????????????????????????? | | ?????????????????????????????????????????????????? | | ?????????????????????????????????????????????????? | | ????????????????????????????? #??????????????????? | | ????????????????????????????? #??????????????????? | | ???????????????????????????? #??????????????????? | | ???????????????????????????? #??????????????????? | | ????????????????#?????????"" #??????????????????? | | ???????????????? ?????????"" #??????????????????? | | #######????????? ?????????"" #??????????????????? | | #????????? ????????? #??????????????????? | | #????????? ???????? o !#??????????????????? | | #????????? ???????? #??????????????????? | | #????????? ???????? ##?????????????????? | | #######????????# ######+#+ ########??????????? | | #?#######??????# # # T ????????? | | #?# #??????# # # @ w ????????? | | #?# #??????# # # % ????????? | | #?# ######## # hp ????????? | | #?# # # = % h ????????? | | ### ; ????????? | | =# # ????????? | | + * # ????????? | | # # # ????????? | | # ###### b """ ????????? | | # "#???#!!% """ """ ??????????? | | # # [ % ###??#! % """ """ ????????????? | | # # # #??#%g% g ??????????? | | # ######## = ####! = g ??????????? | | # #??????## # = % %H % g ??????????? | | # #???????### ####???????????? | | # #????????# % #??????????????? | | ? ????? #??????????????? | | ?#??# #####"######+###??????????????? | | ????# #???# ??????????????????????? | | ????# #???# ????????????????????? | | ????# ???? ???????????????????? | | ????# #???? ??????????????????? | | ????? ###+#####+##???? ?????????????????? | | ?????#+#???????????????? ?????????????????? | | ???????????????????????? ?????????????????? | +----------------------------------------------------+ Best States ------------- Heat Dissipation 103 Energy Generation 37 Energy Capacity 535 Matter Stores 300 Matter Capacity 400 Sight Range 16 Terrain Scan Density 10 Armor Coverage 1050 Resistance: KI 30 Resistance: TH 30 Weapon Cycling 20 Phase Shifting 15 Evasion (%) 55 Targeting Accuracy 12 Launcher Accuracy 20 Recoil Reduction 4 Kinecelleration 40 Relay Coupler Types 1 Relay Coupler Value 33 Item Schematics ----------------- Huge Storage Unit | -10/Materials | Hacked Hrd. Light Armor Plating | -8/Materials | Scanalyzed Hvy. Armor Plating | -8/Materials | Hacked Imp. Medium Armor Plating | -4/Factory | Scanalyzed Robot Schematics ------------------ None Fabricated ------------ Hvy. Armor Plating | x1 | -7/Factory Hvy. Armor Plating | x1 | -7/Factory Repaired ---------- Nothing Studied --------- Wheel | -8/Materials | Hacked Com. Wheel | -8/Materials | Hacked Arm. Wheel | -7/Factory | Hacked Hvy. Mass Driver | -6/Factory | Hacked Rocket Launcher | -6/Factory | Hacked Alien Tech Used ----------------- None Achievements -------------- None Challenges ------------ None Game ------ Seed TerrainTransportSheargun Manual? 0 Play Time 02:38:32 Cumulative 166.1 hours Start 2026.06.23 @ 16:32:10 End 2026.06.23 @ 20:52:59 Sessions 5 Manual Loads 0 Difficulty Rogue Special Mode None Game No. 226 Rogue 226 Adventurer 0 Explorer 0 Win Type - Total 2 Types 2/0/0/0/0/0/0/0/0/0 Lore% 73 Gallery% 54 Achievement% 42 Wizard Run 0 Options --------- Layout 0 ASCII 0 Keyboard 0 Movement Numpad Keybinds 0 Fullscreen 1 Font 18/Terminus Map View 76x50 Zoom Use 0% Tactical HUD 1 Map Filters NONE Filters NONE Steam 1 RUN: 7252896b-8fcf-4756-8b6b-91d44bd69b3d